bitfinex-derivatives/quotes_ETHF0:USTF0_20210402
["timestamp","ask_amount","ask_price","bid_price","bid_amount"]
[1617338306570,69.79466126,1994.6,1994.5,2.90695]
[1617338312080,68.79326126,1994.6,1994.5,2.90695]
[1617338312282,71.73426927,1994.6,1994.5,2.90695]
[1617338314885,68.79326126,1994.6,1994.5,2.90695]
[1617338316484,71.73440312,1994.6,1994.5,2.90695]
[1617338316883,68.79326126,1994.6,1994.5,2.90695]
[1617338317383,68.79326126,1994.6,1994.4,1.4893]
[1617338317586,71.73483366,1994.6,1994.3,2.90695]
[1617338317984,2.06032856,1994.4,1994.3,2.90695]
[1617338319085,1.05892856,1994.4,1994.3,2.90695]
[1617338319285,3.96587856,1994.4,1994.3,2.90695]
[1617338319786,4.53264799,1994.4,1994.3,2.90695]
[1617338321687,3.47371943,1994.4,1994.3,2.90695]
[1617338326093,2.47231943,1994.4,1994.3,2.90695]
[1617338326495,5.41540046,1994.4,1994.3,2.90695]
[1617338328700,6.59746699,1994.4,1994.3,2.90695]
[1617338329501,7.60586699,1994.4,1994.3,2.90695]
[1617338329800,6.59746699,1994.4,1994.3,2.90695]
[1617338333107,5.59606699,1994.4,1994.3,2.90695]
[1617338336010,6.76996017,1994.4,1994.3,2.90695]
[1617338336410,1.47091943,1994.4,1994.3,2.90695]
[1617338337010,7.94404129,1994.4,1994.3,2.90695]
[1617338337209,7.94404129,1994.4,1994.3,2.79765]
[1617338337409,7.94404129,1994.4,1993.7,71.8467]
[1617338337410,7.94404129,1994.4,1994.1,2.90695]
[1617338337613,71.8734,1994.3,1994.1,2.90695]
[1617338337812,5.29691345,1994.2,1994.1,2.90695]
[1617338338116,14.50333136,1994.2,1994.1,2.90695]
[1617338338920,9.20641791,1994.2,1994.1,2.90695]
[1617338339513,17.40962696,1994.2,1994.1,2.90695]
[1617338342216,12.11336791,1994.2,1994.1,2.90695]
[1617338342618,76.88126791,1994.2,1994.1,2.90695]
[1617338342816,12.11336791,1994.2,1994.1,2.90695]
[1617338343018,3.494916,1994.2,1994.1,2.90695]
[1617338343419,8.79188592,1994.2,1994.1,2.90695]
[1617338346321,3.494916,1994.2,1994.1,2.90695]
[1617338347323,8.79108665,1994.2,1994.1,2.90695]
[1617338347924,88.38448665,1994.2,1994.1,2.90695]
[1617338348626,96.83842655,1994.2,1994.1,2.90695]
[1617338353731,91.5422559,1994.2,1994.1,2.90695]
[1617338354733,90.41579027,1994.2,1994.1,2.90695]
[1617338357639,87.47534579,1994.2,1994.1,2.90695]
[1617338358242,90.41498256,1994.2,1994.1,2.90695]
[1617338358641,87.47534579,1994.2,1994.1,2.90695]
[1617338359141,7.88194579,1994.2,1994.1,2.90695]
[1617338359540,4.97499579,1994.2,1994.1,2.90695]
[1617338359743,2.94026826,1994.2,1994.1,2.90695]
[1617338360141,2.51350105,1994.3,1994.1,2.90695]
[1617338360342,2.51350105,1994.3,1994.2,77.2264]
[1617338360744,2.51350105,1994.3,1994.1,2.90695]
[1617338361547,4.42063093,1994.2,1994.1,70.84085]
[1617338361945,2.51350105,1994.3,1994.1,70.84085]
[1617338367150,1.51120105,1994.3,1994.1,70.84085]
[1617338368050,2.90695,1994.4,1994.1,70.84085]
[1617338368051,7.02268856,1994.4,1994.1,70.84085]
[1617338368650,4.11423097,1994.3,1994.1,70.84085]
[1617338369651,2.90695,1994.2,1994.1,70.84085]
[1617338372457,2.90695,1994.2,1994.1,2.90695]
[1617338372658,2.90695,1994.2,1994.1,1.13775]
[1617338374258,1.90465,1994.2,1994.1,1.13775]
[1617338374959,6.02178376,1994.2,1994.1,1.13775]
[1617338375360,14.53417973,1994.2,1994.1,1.13775]
[1617338376459,10.41704597,1994.2,1994.1,1.13775]
[1617338379263,9.26753851,1994.2,1994.1,1.13775]
[1617338379966,6.32526766,1994.2,1994.1,1.13775]
[1617338381166,5.32296766,1994.2,1994.1,1.13775]
[1617338388174,4.32066766,1994.2,1994.1,1.13775]
[1617338388577,9.44975111,1994.2,1994.1,1.13775]
[1617338389177,1.013,1994.2,1994.1,1.13775]
[1617338389481,6.30307896,1994.2,1994.1,1.13775]
[1617338389683,9.21002896,1994.2,1994.1,1.13775]
[1617338390281,3.91995,1994.2,1994.1,1.13775]
[1617338390883,9.20994799,1994.2,1994.1,1.13775]
[1617338391882,81.24104799,1994.2,1994.1,1.13775]
[1617338392288,75.95105,1994.2,1994.1,1.13775]
[1617338392483,84.43643816,1994.2,1994.1,1.13775]
[1617338393685,89.72994546,1994.2,1994.1,1.13775]
[1617338395186,83.43413816,1994.2,1994.1,1.13775]
[1617338398592,87.55110028,1994.2,1994.1,1.13775]
[1617338399293,83.43413816,1994.2,1994.1,1.13775]
[1617338399492,87.55102224,1994.2,1994.1,1.13775]
[1617338399892,83.43413816,1994.2,1994.1,1.13775]
[1617338401692,82.28831874,1994.2,1994.1,1.13775]
[1617338401892,10.25721874,1994.2,1993.9,2.90695]
[1617338402093,67.4858,1993.9,1993.1,1.6452]
[1617338402293,66.4835,1993.9,1992.8,67.4858]
[1617338402803,0.70516449,1993.0,1992.8,67.4858]
[1617338403801,0.70516449,1993.0,1992.9,2.90695]
[1617338409101,0.70537884,1993.1,1992.8,67.4858]
[1617338409301,0.64358396,1993.3,1992.8,67.4858]
[1617338409501,0.56323598,1993.0,1992.8,67.4858]
[1617338409701,0.5602908,1993.2,1992.8,67.4858]
[1617338410103,1.17535021,1993.5,1992.8,67.4858]
[1617338410603,1.17535021,1993.5,1993.4,2.90695]
[1617338411004,2.0619401,1993.6,1993.4,2.90695]
[1617338411204,2.0619401,1993.6,1992.8,67.4858]
[1617338411403,0.56080591,1993.5,1992.8,67.4858]
[1617338411703,1.17651221,1993.4,1992.8,67.4858]
[1617338412604,1.17651221,1993.4,1993.3,2.90695]
[1617338413408,2.06130699,1993.5,1993.3,2.90695]
[1617338413807,0.56063795,1993.4,1993.3,2.90695]
[1617338414208,2.06130699,1993.5,1993.3,2.90695]
[1617338414610,0.56027711,1993.4,1993.3,2.90695]
[1617338414909,2.0607245,1993.4,1993.3,2.90695]
[1617338415310,0.56030805,1993.4,1993.3,2.90695]
[1617338416214,4.52603082,1993.5,1993.3,2.90695]
[1617338416612,2.06107277,1993.5,1993.3,2.90695]
[1617338418816,1.1763674,1993.4,1993.3,2.90695]
[1617338419216,2.06107277,1993.5,1993.3,2.90695]
[1617338420918,1.17598269,1993.4,1993.3,2.90695]
[1617338422921,2.90695,1993.7,1993.3,2.90695]
[1617338422922,2.06256542,1993.5,1993.3,2.90695]
[1617338423220,1.06026542,1993.5,1993.3,2.90695]
[1617338425726,2.94510035,1993.6,1993.3,2.90695]
[1617338426024,5.85214817,1993.7,1993.3,2.90695]
[1617338426728,2.90695,1993.7,1993.6,2.90695]
[1617338427528,5.85288161,1993.7,1993.6,2.90695]
[1617338428129,5.85288161,1993.7,1993.6,64.51665]
[1617338428130,2.90695,1993.7,1993.6,64.51665]
[1617338428330,5.85273566,1993.7,1993.6,64.51665]
[1617338433235,2.90695,1993.7,1993.6,64.51665]
[1617338435138,5.85382015,1993.7,1993.6,64.51665]
[1617338438344,2.90695,1993.7,1993.6,64.51665]
[1617338441550,7.03127939,1993.7,1993.6,64.51665]
[1617338443753,2.90695,1993.7,1993.6,64.51665]
[1617338444052,7.02897,1993.7,1993.6,64.51665]
[1617338444454,2.90695,1993.7,1993.6,64.51665]
[1617338445156,5.85285804,1993.7,1993.6,64.51665]
[1617338445955,2.90695,1993.7,1993.6,64.51665]
[1617338446158,2.90695,1993.7,1993.6,2.90695]
[1617338446355,5.85308551,1993.7,1993.6,2.90695]
[1617338447359,2.90695,1993.7,1993.6,2.90695]
[1617338452662,2.90695,1993.7,1993.6,78.74015]
[1617338454764,2.90695,1993.7,1993.6,2.90695]
[1617338456367,1.90435,1993.7,1993.6,2.90695]
[1617338459370,0.90175,1993.7,1993.6,2.90695]
[1617338460870,4.13007306,1993.8,1993.6,84.65545]
[1617338461372,4.67760496,1993.8,1993.6,84.65545]
[1617338462472,4.13430667,1993.7,1993.6,84.65545]
[1617338462871,4.68177864,1993.8,1993.6,84.65545]
[1617338463172,4.13436812,1993.7,1993.6,84.65545]
[1617338463371,4.09926812,1993.7,1993.6,84.65545]
[1617338463571,4.64644338,1993.7,1993.6,84.65545]
[1617338463971,4.09926812,1993.7,1993.6,84.65545]
[1617338464172,4.64644865,1993.7,1993.6,84.65545]
[1617338464572,4.09926812,1993.7,1993.6,84.65545]
[1617338465273,3.09666812,1993.7,1993.6,84.65545]
[1617338465674,3.63411015,1993.7,1993.6,84.65545]
[1617338466073,0.53743764,1993.8,1993.6,84.65545]
[1617338466272,0.49733764,1993.8,1993.6,84.65545]
[1617338467673,0.49733764,1993.8,1993.6,2.90695]
[1617338468073,1.54857575,1993.9,1993.8,81.1564]
[1617338468473,0.2041,1993.9,1993.8,81.1564]
[1617338468773,6.43053029,1994.1,1993.8,81.1564]
[1617338468972,6.43053029,1994.1,1994.0,2.36112788]
[1617338471275,5.42793029,1994.1,1994.0,2.36112788]
[1617338472275,4.42533029,1994.1,1994.0,2.36112788]
[1617338474079,87.40593029,1994.1,1994.0,2.36112788]
[1617338474578,94.51235452,1994.1,1994.0,2.36112788]
[1617338476082,90.08702423,1994.1,1994.0,2.36112788]
[1617338478283,89.08442423,1994.1,1994.0,2.36112788]
[1617338479283,88.08182423,1994.1,1994.0,2.36112788]
[1617338482089,92.21700514,1994.1,1994.0,2.36112788]
[1617338482490,88.08182423,1994.1,1994.0,2.36112788]
[1617338482793,92.21696501,1994.1,1994.0,2.36112788]
[1617338483796,88.08182423,1994.1,1994.0,2.36112788]
[1617338485398,87.07922423,1994.1,1994.0,4.08042788]
[1617338486397,86.60302423,1994.1,1994.0,4.08042788]
[1617338488504,7.10642423,1994.1,1994.0,4.08042788]
[1617338488708,7.10642423,1994.1,1994.0,34.08042788]
[1617338488902,2.95384853,1994.1,1994.0,34.08042788]
[1617338489304,2.95363845,1994.2,1994.0,36.08042788]
[1617338489702,2.068304,1994.2,1994.0,36.08042788]
[1617338490303,1.18018379,1994.1,1994.0,36.08042788]
[1617338492405,0.53338379,1994.1,1994.0,36.08042788]
[1617338493206,2.06827209,1994.3,1994.0,36.08042788]
[1617338493405,0.94198224,1994.2,1994.0,36.08042788]
[1617338493807,0.7064787,1994.1,1994.0,36.08042788]
[1617338495608,0.7064787,1994.1,1994.0,34.08042788]
[1617338495808,0.7064787,1994.1,1994.0,106.88562788]
[1617338496211,0.9420434,1994.2,1994.0,106.88562788]
[1617338497314,0.7064946,1994.1,1994.0,106.88562788]
[1617338497510,0.7064946,1994.1,1994.0,108.88562788]
[1617338498311,0.7064946,1994.1,1994.0,106.88562788]
[1617338500414,0.7064946,1994.1,1994.0,76.88562788]
[1617338501015,0.94166271,1994.2,1994.0,76.88562788]
[1617338501416,0.94166271,1994.2,1994.0,4.08042788]
[1617338501616,0.94166271,1994.2,1994.0,2.36112788]
[1617338503020,77.6262,1994.1,1994.0,2.36112788]
[1617338503418,78.15399892,1994.1,1994.0,2.36112788]
[1617338503618,0.52779892,1994.1,1994.0,2.36112788]
[1617338504218,0.94166271,1994.2,1994.0,61.49282788]
[1617338504620,1.24744038,1994.1,1994.0,61.49282788]
[1617338505319,0.70587476,1994.1,1994.0,61.49282788]
[1617338506420,0.70585474,1994.2,1994.0,61.49282788]
[1617338508728,0.70585474,1994.2,1994.0,91.49282788]
[1617338508930,0.70583917,1994.3,1994.0,91.49282788]
[1617338509527,0.70582873,1994.2,1994.1,2.0]
[1617338509731,0.70582873,1994.2,1994.1,32.0]
[1617338509938,0.70583039,1994.3,1994.1,32.0]
[1617338510333,0.70584909,1994.2,1994.1,32.0]
[1617338511539,0.70584909,1994.2,1994.1,34.90695]
[1617338512533,0.70584909,1994.2,1994.1,32.90695]
[1617338513233,0.705736,1994.3,1994.1,32.90695]
[1617338514334,0.705736,1994.3,1994.1,30.0]
[1617338514534,0.705736,1994.3,1994.1,31.7871]
[1617338514736,0.70568645,1994.4,1994.1,31.7871]
[1617338515539,0.70504503,1994.6,1994.1,31.7871]
[1617338515739,0.70504503,1994.6,1994.5,2.90695]
[1617338516138,0.70504503,1994.6,1994.5,32.90695]
[1617338516940,0.94005995,1994.7,1994.5,32.90695]
[1617338517139,0.94005995,1994.7,1994.5,33.90835]
[1617338517339,0.70504235,1994.6,1994.5,34.41255]
[1617338517739,1.26823859,1994.6,1994.5,34.41255]
[1617338517937,1.26823859,1994.6,1994.5,100.74375]
[1617338518139,0.70504235,1994.6,1994.5,100.74375]
[1617338520340,0.70498499,1994.7,1994.5,100.74375]
[1617338521141,0.70496323,1994.8,1994.5,100.74375]
[1617338521741,0.70496323,1994.8,1994.7,2.90695]
[1617338521941,0.70496323,1994.8,1994.7,32.90695]
[1617338522543,1.77708604,1995.0,1994.7,32.90695]
[1617338522944,0.55395807,1994.8,1994.7,32.90695]
[1617338523144,0.55395807,1994.8,1994.7,34.90695]
[1617338523346,66.3312,1995.1,1994.7,34.90695]
[1617338523647,0.93994106,1995.0,1994.7,34.90695]
[1617338523846,0.93994106,1995.0,1994.7,32.0]
[1617338524645,0.93994106,1995.0,1994.7,30.0]
[1617338524845,0.93994106,1995.0,1994.6,30.0]
[1617338525846,0.93994106,1995.0,1994.9,2.90695]
[1617338529447,66.26934106,1995.1,1994.9,2.90695]
[1617338535053,67.44384949,1995.1,1994.9,2.90695]
[1617338536453,66.44204949,1995.1,1994.9,2.90695]
[1617338536853,1.17426784,1995.0,1994.9,2.90695]
[1617338537653,66.44183438,1995.1,1994.9,2.90695]
[1617338538253,1.17440642,1995.0,1994.9,2.90695]
[1617338539356,66.44191852,1995.1,1994.9,2.90695]
[1617338539756,1.17436395,1995.0,1994.9,2.90695]
[1617338539956,66.44200232,1995.1,1994.9,2.90695]
[1617338541958,65.26754106,1995.1,1994.9,2.90695]
[1617338543460,64.26574106,1995.1,1994.9,2.90695]
[1617338547062,65.25394106,1995.1,1994.9,2.90695]
[1617338547264,64.26574106,1995.1,1994.9,2.90695]
[1617338548464,1.17456209,1995.2,1994.9,2.90695]
[1617338549067,1.17456209,1995.2,1995.1,73.0937]
[1617338549967,1.17456209,1995.2,1995.1,76.00065]
[1617338550367,0.17276209,1995.2,1995.1,76.00065]
[1617338551268,0.17276209,1995.2,1995.1,32.90695]
[1617338551868,7.24967263,1995.6,1995.1,32.90695]
[1617338551869,2.05938425,1995.6,1995.1,32.90695]
[1617338552068,2.05938425,1995.6,1995.5,2.90695]
[1617338552269,2.05927152,1995.7,1995.5,2.90695]
[1617338552470,2.05927152,1995.7,1995.6,73.5526]
[1617338552668,2.05779731,1995.8,1995.6,30.0]
[1617338552869,2.05779731,1995.8,1995.7,73.5183]
[1617338553069,2.05759513,1995.9,1995.7,73.5183]
[1617338553468,4.96445343,1996.1,1995.7,73.5183]
[1617338554069,4.96445343,1996.1,1996.0,2.32775578]
[1617338554270,4.96445343,1996.1,1996.0,3.75665578]
[1617338554570,2.90695,1996.1,1996.0,3.75665578]
[1617338555872,2.90695,1996.1,1996.0,2.32775578]
[1617338556072,4.96444473,1996.1,1996.0,2.32775578]
[1617338557273,2.05741304,1996.2,1996.0,2.32775578]
[1617338557475,1.05561304,1996.2,1996.0,2.32775578]
[1617338557873,1.05561304,1996.2,1996.1,82.6832]
[1617338560677,2.94044187,1996.2,1996.1,82.6832]
[1617338561080,3.94516568,1996.3,1996.1,82.6832]
[1617338561281,2.94046568,1996.3,1996.0,2.32775578]
[1617338561485,69.0568,1996.2,1996.0,2.32775578]
[1617338561684,71.99722437,1996.2,1996.0,2.32775578]
[1617338561980,4.39226412,1996.1,1996.0,2.32775578]
[1617338563580,3.95028475,1996.3,1996.0,2.32775578]
[1617338563781,1.0098,1996.3,1996.2,63.8741]
[1617338564180,1.0098,1996.3,1996.2,66.78105]
[1617338564381,0.008,1996.3,1996.2,66.78105]
[1617338566585,7.38189859,1996.5,1996.2,66.78105]
[1617338567586,2.05600826,1996.3,1996.2,66.78105]
[1617338571391,1.05420826,1996.3,1996.2,66.78105]
[1617338572192,2.93947004,1996.3,1996.2,66.78105]
[1617338572992,2.93947004,1996.3,1996.2,67.79485]
[1617338573191,2.93947004,1996.3,1996.2,66.78105]
[1617338574994,2.9393553,1996.4,1996.2,66.78105]
[1617338575996,7.38270187,1996.5,1996.2,66.78105]
[1617338576196,7.38270187,1996.5,1996.4,2.90695]
[1617338576396,2.93672377,1996.5,1996.4,4.89115]
[1617338576796,3.93507359,1996.6,1996.4,4.89115]
[1617338576997,2.93667359,1996.6,1996.4,4.89115]
[1617338578598,1.93487359,1996.6,1996.4,4.89115]
[1617338579000,1.93487359,1996.6,1996.5,58.9379]
[1617338580204,1.93487359,1996.6,1996.4,2.90695]
[1617338580405,1.93487359,1996.6,1996.5,30.0]
[1617338580605,2.571,1996.8,1996.5,30.0]
[1617338581004,1.17328719,1996.6,1996.5,30.0]
[1617338582010,1.0011,1997.0,1996.5,30.0]
[1617338582011,0.93850548,1996.7,1996.5,30.0]
[1617338582410,0.93850548,1996.7,1996.6,32.90695]
[1617338584011,0.70238283,1996.9,1996.7,108.5236]
[1617338584411,0.70238283,1996.9,1996.8,32.90695]
[1617338585612,0.63709327,1997.1,1996.8,32.90695]
[1617338585811,0.58606598,1996.9,1996.8,2.90695]
[1617338586011,0.63709327,1997.1,1996.8,2.90695]
[1617338586411,1.75674759,1997.2,1997.0,2.90695]
[1617338586612,1.75674759,1997.2,1997.1,68.4939]
[1617338586811,1.17062304,1997.3,1997.0,2.90695]
[1617338587013,72.3377,1997.1,1997.0,2.90695]
[1617338587212,74.3458,1997.1,1997.0,2.90695]
[1617338587413,77.27079044,1997.1,1997.0,2.90695]
[1617338587614,76.10011787,1997.1,1997.0,2.90695]
[1617338588015,78.15191036,1997.1,1997.0,2.90695]
[1617338588417,81.05886036,1997.1,1997.0,2.90695]
[1617338588816,79.00706787,1997.1,1997.0,2.90695]
[1617338589017,81.0588779,1997.1,1997.0,2.90695]
[1617338589418,79.00706787,1997.1,1997.0,2.90695]
[1617338589818,81.05890629,1997.1,1997.0,2.90695]
[1617338590219,79.00706787,1997.1,1997.0,2.90695]
[1617338590420,6.66936787,1997.1,1997.0,2.90695]
[1617338590619,6.71313006,1997.1,1997.0,2.90695]
[1617338591021,3.49308962,1997.1,1997.0,2.90695]
[1617338591819,4.66382684,1997.1,1997.0,2.90695]
[1617338592520,1.75687684,1997.1,1997.0,2.90695]
[1617338592719,1.75328182,1997.2,1997.0,2.90695]
[1617338593120,1.75328385,1997.1,1997.0,2.90695]
[1617338593521,1.170646,1997.1,1997.0,2.90695]
[1617338598527,1.75357094,1997.2,1997.0,2.90695]
[1617338598929,1.1708868,1997.1,1997.0,2.90695]
[1617338599326,1.75361055,1997.1,1997.0,2.90695]
[1617338599528,1.1708868,1997.1,1997.0,2.90695]
[1617338599928,1.75355119,1997.1,1997.0,2.90695]
[1617338600329,1.1708868,1997.1,1997.0,2.90695]
[1617338601332,2.63459213,1997.2,1997.0,2.90695]
[1617338601731,0.58388603,1997.1,1997.0,2.90695]
[1617338602532,2.63579492,1997.2,1997.0,2.90695]
[1617338602932,1.17085217,1997.1,1997.0,2.90695]
[1617338603733,2.63582319,1997.2,1997.0,2.90695]
[1617338604136,1.1708539,1997.1,1997.0,2.90695]
[1617338606740,2.63624822,1997.2,1997.0,2.90695]
[1617338607837,2.63624822,1997.2,1997.0,32.90695]
[1617338608038,1.75483804,1997.2,1997.0,32.90695]
[1617338608438,2.05209258,1997.4,1997.0,32.90695]
[1617338608439,0.56064895,1997.1,1997.0,32.90695]
[1617338609242,1.1709168,1997.4,1997.0,32.90695]
[1617338609640,0.1703168,1997.4,1997.3,63.3116]
[1617338609840,0.1703168,1997.4,1997.3,64.7974]
[1617338610641,0.1703168,1997.4,1997.3,67.70435]
[1617338612744,0.1703168,1997.4,1997.3,2.90695]
[1617338613744,4.87511165,1997.4,1997.3,2.90695]
[1617338614545,8.78686165,1997.4,1997.3,2.90695]
[1617338614746,65.2409,1997.3,1996.0,95.2256]
[1617338614946,67.2409,1997.3,1996.0,95.2256]
[1617338615447,2.05242703,1997.1,1996.0,95.2256]
[1617338615646,4.05242703,1997.1,1996.0,95.2256]
[1617338615846,0.93692912,1996.7,1996.0,95.2256]
[1617338616046,2.26222912,1996.7,1996.0,95.2256]
[1617338616246,0.93697069,1996.6,1996.0,95.2256]
[1617338616647,0.55088748,1996.6,1996.5,2.90695]
[1617338617750,2.05255141,1997.0,1996.5,2.90695]
[1617338617949,2.05255141,1997.0,1996.6,69.0836]
[1617338618150,2.05321725,1997.1,1996.6,69.0836]
[1617338618550,3.71392515,1997.2,1997.0,2.90695]
[1617338618949,2.05318897,1997.1,1997.0,2.90695]
[1617338619750,1.11914827,1997.2,1997.0,2.90695]
[1617338619751,4.59268203,1997.2,1997.0,2.90695]
[1617338619950,0.54154567,1997.1,1997.0,2.90695]
[1617338620350,4.59297452,1997.2,1997.0,2.90695]
[1617338620550,4.59297452,1997.2,1997.1,74.5842]
[1617338620750,3.18912565,1997.5,1997.1,74.5842]
[1617338620751,2.9332348,1997.3,1997.1,74.5842]
[1617338621151,2.0540745,1997.3,1997.1,74.5842]
[1617338622754,2.0540745,1997.3,1997.2,2.90695]
[1617338623353,2.59265736,1997.3,1997.2,2.90695]
[1617338623553,1.59205736,1997.3,1997.2,2.90695]
[1617338624054,0.53858286,1997.3,1997.2,2.90695]
[1617338624558,2.90695,1997.4,1997.2,2.90695]
[1617338626566,5.83986189,1997.4,1997.2,2.90695]
[1617338626769,6.37788437,1997.4,1997.2,2.90695]
[1617338627169,0.53789205,1997.3,1997.2,32.90695]
[1617338627571,2.93224923,1997.7,1997.2,32.90695]
[1617338628669,2.93224923,1997.7,1997.6,2.90695]
[1617338629874,3.93634923,1997.7,1997.6,2.90695]
[1617338630475,3.47008134,1997.7,1997.6,2.90695]
[1617338630675,2.46948134,1997.7,1997.6,32.90695]
[1617338630876,4.1039772,1997.9,1997.7,60.1355]
[1617338631075,4.63147852,1998.0,1997.7,90.1355]
[1617338631475,5.28477562,1997.9,1997.7,90.1355]
[1617338631876,5.8134487,1997.9,1997.7,90.1355]
[1617338632077,5.28477562,1997.9,1997.7,90.1355]
[1617338632379,6.28867562,1997.9,1997.7,90.1355]
[1617338632578,0.52868363,1997.8,1997.7,90.1355]
[1617338632779,0.52868363,1997.8,1997.6,2.90695]
[1617338633179,4.11104569,1997.7,1997.6,2.90695]
[1617338635481,6.09934569,1997.7,1997.6,2.90695]
[1617338635685,2.51705298,1997.7,1997.6,2.90695]
[1617338636083,7.8022537,1997.7,1997.6,2.90695]
[1617338636482,7.8022537,1997.7,1996.3,58.2939]
[1617338636483,2.51705298,1997.7,1996.3,58.2939]
[1617338636684,83.513,1997.6,1997.3,2.90695]
[1617338637083,4.1114262,1997.4,1997.3,2.90695]
[1617338637283,14.20937583,1997.5,1997.3,2.90695]
[1617338637682,0.53340369,1997.4,1997.3,2.90695]
[1617338638084,13.19842733,1997.5,1997.3,2.71185]
[1617338638789,2.90695,1997.4,1997.3,2.71185]
[1617338639185,3.44044833,1997.4,1997.3,2.71185]
[1617338640089,4.43074833,1997.4,1997.3,2.71185]
[1617338640788,3.44044833,1997.4,1997.3,2.71185]
[1617338643790,9.910953,1997.4,1997.3,2.71185]
[1617338644088,3.44044833,1997.4,1997.3,2.71185]
[1617338644688,2.43984833,1997.4,1997.3,2.71185]
[1617338645489,0.53349833,1997.4,1997.3,2.71185]
[1617338645890,6.47040896,1997.5,1997.3,2.71185]
[1617338646191,5.29408267,1997.4,1997.3,2.71185]
[1617338646691,5.29398694,1997.5,1997.3,2.71185]
[1617338646890,5.29398694,1997.5,1997.3,3.92915]
[1617338647091,5.29386077,1997.4,1997.3,3.92915]
[1617338647490,4.11797417,1997.4,1997.3,3.92915]
[1617338647690,4.62913655,1997.4,1997.3,3.92915]
[1617338648091,2.94200777,1997.4,1997.3,3.92915]
[1617338648496,0.51115994,1997.4,1997.3,3.92915]
[1617338648692,0.51115994,1997.4,1997.3,77.50665]
[1617338648893,3.45326671,1997.4,1997.3,77.50665]
[1617338649093,2.94210677,1997.4,1997.3,77.50665]
[1617338651595,4.62894064,1997.6,1997.3,77.50665]
[1617338651596,3.1172247,1997.5,1997.3,77.50665]
[1617338652197,3.1172247,1997.5,1997.3,3.92915]
[1617338652397,64.1733247,1997.5,1997.3,2.71185]
[1617338652798,8.56418088,1997.4,1997.3,2.71185]
[1617338653598,13.85839171,1997.4,1997.3,2.71185]
[1617338653798,8.56418088,1997.4,1997.3,2.71185]
[1617338654198,15.03909585,1997.4,1997.3,2.71185]
[1617338654899,17.94604585,1997.4,1997.3,2.71185]
[1617338656599,11.47113088,1997.4,1997.3,2.71185]
[1617338656999,17.94600044,1997.4,1997.3,2.71185]
[1617338658405,3.40811925,1997.4,1997.3,1.70195]
[1617338658603,2.40751925,1997.4,1997.3,1.70195]
[1617338658803,2.40751925,1997.4,1997.1,2.90695]
[1617338658804,73.4974,1997.3,1997.1,2.90695]
[1617338659405,14.51544507,1997.2,1997.1,2.90695]
[1617338660907,17.42239507,1997.2,1997.1,2.90695]
[1617338661507,17.42239507,1997.2,1995.7,30.0]
[1617338662107,0.70611021,1995.8,1995.7,30.0]
[1617338662910,0.70611021,1995.8,1995.7,32.90695]
[1617338665611,0.6469905,1996.0,1995.7,32.90695]
[1617338665812,1.17863161,1995.9,1995.8,70.4183]
[1617338666614,1.17859892,1996.0,1995.8,70.4183]
[1617338666816,1.17859892,1996.0,1995.9,2.90695]
[1617338667215,7.15877601,1996.4,1995.9,2.90695]
[1617338667216,2.06550547,1996.1,1995.9,2.90695]
[1617338672618,1.06490547,1996.1,1995.9,2.90695]
[1617338673521,2.94975958,1996.2,1995.9,2.90695]
[1617338674322,2.94951734,1996.3,1995.9,2.90695]
[1617338674522,2.94953939,1996.2,1996.1,61.6196]
[1617338674723,2.94953939,1996.2,1996.1,62.6185]
[1617338674923,2.94953939,1996.2,1996.1,65.52545]
[1617338675123,2.94953939,1996.2,1996.1,64.52655]
[1617338675723,2.94895126,1996.3,1996.1,64.52655]
[1617338680924,2.90695,1996.8,1996.1,64.52655]
[1617338680925,2.94878268,1996.4,1996.1,64.52655]
[1617338681324,2.94884823,1996.3,1996.1,64.52655]
[1617338691042,2.06480819,1996.2,1996.1,64.52655]
[1617338691437,0.49606089,1996.2,1996.1,64.52655]
[1617338692136,2.94847179,1996.3,1996.1,64.52655]
[1617338695139,4.1266823,1996.5,1996.1,64.52655]
[1617338695140,2.06447359,1996.2,1996.1,64.52655]
[1617338695740,2.06447359,1996.2,1996.1,2.90695]
[1617338696540,6.72142318,1996.2,1996.1,2.90695]
[1617338697942,4.65694959,1996.2,1996.1,2.90695]
[1617338699145,5.66784959,1996.2,1996.1,2.90695]
[1617338699344,4.65694959,1996.2,1996.1,2.90695]
[1617338700848,2.94803169,1996.3,1996.1,2.90695]
[1617338701048,2.94803169,1996.3,1996.1,4.16055]
[1617338702350,2.06453141,1996.2,1996.1,4.16055]
[1617338702749,2.55010143,1996.2,1996.1,4.16055]
[1617338702949,2.06453141,1996.2,1996.1,4.16055]
[1617338704851,2.06445141,1996.3,1996.1,4.16055]
[1617338705050,2.06445141,1996.3,1996.2,74.9426]
[1617338705751,1.06365141,1996.3,1996.2,74.9426]
[1617338705952,1.53897749,1996.3,1996.2,74.9426]
[1617338706352,1.06365141,1996.3,1996.2,74.9426]
[1617338707953,1.06365141,1996.3,1996.1,4.53035]
[1617338708152,1.06365141,1996.3,1996.2,30.0]
[1617338708353,1.17813217,1996.3,1996.2,30.0]
[1617338709556,1.1781518,1996.4,1996.2,30.0]
[1617338709756,1.1781657,1996.3,1996.2,30.0]
[1617338710956,2.94831184,1996.6,1996.2,30.0]
[1617338711156,5.30460502,1997.0,1996.5,80.0878]
[1617338711157,2.94833195,1996.7,1996.5,80.0878]
[1617338711456,2.94833195,1996.7,1996.6,2.90695]
[1617338711656,1.01821284,1997.0,1996.6,2.90695]
[1617338711657,4.12649857,1996.8,1996.6,2.90695]
[1617338711857,2.94835685,1996.7,1996.6,2.90695]
[1617338712259,4.12652749,1996.8,1996.6,2.90695]
[1617338712657,3.12572749,1996.8,1996.6,2.90695]
[1617338714472,4.14022749,1996.8,1996.6,2.90695]
[1617338714664,3.12572749,1996.8,1996.6,2.90695]
[1617338714863,5.30505564,1996.9,1996.6,2.90695]
[1617338715262,0.48362521,1996.7,1995.6,30.0]
[1617338715463,58.4622,1996.6,1995.6,30.0]
[1617338715863,1.17832078,1995.8,1995.6,30.0]
[1617338716064,62.4358,1995.6,1995.1,30.0]
[1617338716264,62.4358,1995.6,1994.6,62.4358]
[1617338716465,64.0486,1995.6,1994.6,62.4358]
[1617338716665,0.94287331,1995.2,1994.6,62.4358]